fUST/lending_fUST_20240617
["ID","MTS","AMOUNT","RATE_DAILY","PERIOD"]
[329674251,1718563852206,-500.0,0.0001492,2]
[329674252,1718563852217,-237.96579198,0.0001492,2]
[329674253,1718563852231,-500.0,0.0001492,2]
[329674254,1718563852243,-530.57,0.0001492,2]
[329674255,1718563852253,-677.69,0.0001492,2]
[329674256,1718563852264,-500.0,0.0001492,2]
[329674257,1718563852276,-500.0,0.0001492,2]
[329674258,1718563852289,-500.0,0.0001492,2]
[329674259,1718563852302,-500.0,0.0001492,2]
[329674260,1718563852313,-500.0,0.0001492,2]
[329674261,1718563852324,-500.0,0.0001492,2]
[329674262,1718563852335,-652.29,0.0001492,2]
[329674263,1718563852346,-561.08015417,0.0001492,2]
[329674264,1718563852362,-302.0,0.0001492,2]
[329674265,1718563852446,-500.0,0.00014645,2]
[329674266,1718563852474,-162.55984583,0.0001492,2]
[329674267,1718563852486,-278.62910165,0.0001492,2]
[329674268,1718563852522,-392.68089835,0.0001492,2]
[329674269,1718563852535,-2979.23,0.0001492,2]
[329674270,1718563852548,-500.0,0.0001492,2]
[329674271,1718563852561,-500.0,0.0001492,2]
[329674272,1718563852584,-500.0,0.0001492,2]
[329674273,1718563852598,-568.9,0.0001492,2]
[329674274,1718563852609,-10963.46,0.0001492,2]
[329674275,1718563852622,-500.0,0.0001492,2]
[329674276,1718563852640,-723.18,0.0001492,2]
[329674277,1718563852651,-17936.2278146,0.0001492,2]
[329674278,1718563852666,-47.1221854,0.0001492,2]
[329674279,1718563852676,-2165.84,0.0001492,2]
[329674280,1718563852692,-525.88,0.0001492,2]
[329674281,1718563852703,-500.0,0.0001492,2]
[329674282,1718563852721,-352.42729182,0.0001492,2]
[329674283,1718563852738,-1212.41,0.0001492,2]
[329674284,1718563852756,-500.0,0.0001492,2]
[329674285,1718563852769,-500.0,0.0001492,2]
[329674286,1718563852780,-2904.79,0.0001492,2]
[329674287,1718563852801,-500.0,0.0001492,2]
[329674288,1718563852825,-500.0,0.0001492,2]
[329674289,1718563852848,-500.0,0.0001492,2]
[329674290,1718563852873,-500.0,0.0001492,2]
[329674291,1718563852889,-5204.23,0.0001492,2]
[329674292,1718563852939,-630.02,0.0001492,2]
[329674293,1718563852960,-500.0,0.0001492,2]
[329674294,1718563852987,-500.0,0.0001492,2]
[329674295,1718563853024,-1523.63,0.0001492,2]
[329674296,1718563853036,-580.92,0.0001492,2]
[329674297,1718563853049,-1429.36,0.0001492,2]
[329674298,1718563853061,-871.43,0.0001492,2]
[329674299,1718563853079,-576.9,0.0001492,2]
[329674300,1718563853090,-925.28,0.00014921,2]
[329674301,1718563853102,-477.3626576,0.00014921,2]
[329674302,1718563853116,-538.0,0.00014921,4]
[329674303,1718563853127,-380.30017938,0.00014921,2]
[329674304,1718563853150,-514.13629635,0.00014921,2]
[329674305,1718563853161,-544.85,0.00014921,2]
[329674306,1718563853178,-500.0,0.00014921,2]
[329674307,1718563853191,-155.01395126,0.00015,2]
[329674308,1718563853211,-500.0,0.00015094,2]
[329674309,1718563853227,-22238.43659707,0.00015095,2]
[329674310,1718563883091,273.37336231,9.9e-05,2]
[329674311,1718563927033,155.01860223,9.999e-05,2]
[329674320,1718564240879,1432.37528222,9.999e-05,2]
[329674429,1718565040736,-3128.3688431,0.00013073,2]
[329674431,1718565040753,-565.8220165,0.00013073,2]
[329674433,1718565040770,-37.62874495,0.00013123,2]
[329674434,1718565040796,-299.90704565,0.00013123,2]
[329674436,1718565040816,-469.901587,0.00013699,2]
[329674438,1718565040843,-572.7962338,0.00013699,2]
[329674440,1718565040864,-300.0,0.00013995,2]
[329674441,1718565040883,-300.0,0.00013995,2]
[329674442,1718565040904,-650.79381934,0.00013996,2]
[329674443,1718565040917,-1189.24036733,0.00013996,2]
[329674444,1718565040932,-1189.24036729,0.00013996,2]
[329674445,1718565040944,-1189.24036729,0.00013997,2]
[329674446,1718565040987,-1189.24036729,0.00013997,2]
[329674447,1718565041017,-1189.24036729,0.00013997,2]
[329674448,1718565041073,-3120.19596103,0.00014093,4]
[329674449,1718565041093,-1097.67951629,0.00014095,2]
[329674450,1718565041104,-500.0,0.00014095,2]
[329674451,1718565041115,-500.0,0.00014095,2]
[329674452,1718565041140,-500.0,0.00014095,2]
[329674453,1718565041160,-3140.05,0.00014095,2]
[329674454,1718565041180,-665.15,0.00014095,2]
[329674455,1718565041202,-500.0,0.00014095,2]
[329674457,1718565041233,-500.0,0.00014095,2]
[329674459,1718565041272,-518.11,0.00014095,2]
[329674461,1718565041300,-500.0,0.00014095,2]
[329674462,1718565041312,-500.0,0.00014095,2]
[329674463,1718565041325,-500.0,0.00014095,2]
[329674464,1718565041342,-500.0,0.00014095,2]
[329674465,1718565041353,-500.0,0.00014095,2]
[329674466,1718565041367,-17711.6,0.00014095,2]
[329674467,1718565041381,-513.19717429,0.00014095,2]
[329674468,1718565041395,-500.0,0.00014095,2]
[329674469,1718565041424,-998.85,0.00014095,2]
[329674470,1718565041496,-2757.92,0.00014095,2]
[329674471,1718565041515,-2471.49,0.00014095,2]
[329674472,1718565041536,-500.0,0.00014095,2]
[329674473,1718565041552,-500.0,0.00014095,2]
[329674474,1718565041580,-500.0,0.00014095,2]
[329674475,1718565041592,-500.0,0.00014095,2]
[329674476,1718565041618,-500.0,0.00014095,2]
[329674477,1718565041824,-500.0,0.00014095,2]
[329674478,1718565041858,-500.0,0.00014095,2]
[329674479,1718565041881,-500.0,0.00014095,2]
[329674480,1718565041912,-500.0,0.00014095,2]
[329674481,1718565041928,-500.0,0.00014095,2]
[329674482,1718565041953,-500.0,0.00014095,2]
[329674483,1718565041965,-500.0,0.00014096,2]
[329674484,1718565041988,-500.0,0.00014096,2]
[329674485,1718565042003,-500.0,0.00014096,2]
[329674487,1718565042046,-500.0,0.00014096,2]
[329674488,1718565042071,-535.47,0.00014096,2]
[329674489,1718565042095,-500.0,0.00014096,2]
[329674490,1718565042107,-500.0,0.00014096,2]
[329674491,1718565042120,-500.0,0.00014096,2]
[329674492,1718565042131,-500.0,0.00014096,2]
[329674493,1718565042144,-500.0,0.00014096,2]
[329674494,1718565042161,-500.0,0.00014096,2]
[329674495,1718565042183,-500.0,0.00014096,2]
[329674496,1718565042194,-500.0,0.00014096,2]
[329674497,1718565042213,-500.0,0.00014096,2]
[329674498,1718565042237,-500.0,0.00014096,2]
[329674499,1718565042247,-500.0,0.00014096,2]
[329674500,1718565042257,-500.0,0.00014096,2]
[329674501,1718565042268,-500.0,0.00014096,2]
[329674502,1718565042279,-500.0,0.00014096,2]
[329674503,1718565042291,-500.0,0.00014096,2]
[329674505,1718565042315,-500.0,0.00014096,2]
[329674506,1718565042326,-500.0,0.00014096,2]
[329674507,1718565042341,-500.0,0.00014096,2]
[329674508,1718565042358,-500.0,0.00014096,2]
[329674509,1718565042392,-500.0,0.00014096,2]
[329674510,1718565042404,-500.0,0.00014096,2]
[329674511,1718565042419,-504.64,0.00014096,2]
[329674512,1718565042430,-219.64,0.00014096,2]
[329674513,1718565042441,-500.0,0.00014096,2]
[329674514,1718565042451,-215.10187374,0.00014096,2]
[329674515,1718565042462,-627.25,0.00014096,2]
[329674516,1718565042474,-500.0,0.00014096,2]
[329674517,1718565042490,-500.0,0.00014096,2]
[329674518,1718565042502,-500.0,0.00014096,2]
[329674519,1718565042514,-500.0,0.00014096,2]
[329674520,1718565042525,-500.0,0.00014096,2]
[329674521,1718565042536,-500.0,0.00014096,2]
[329674522,1718565042563,-167.38875341,0.00014096,2]
[329674524,1718565042590,-500.0,0.00014096,2]
[329674525,1718565042601,-500.0,0.00014096,2]
[329674526,1718565042612,-500.0,0.00014096,2]
[329674527,1718565042623,-500.0,0.00014096,2]
[329674528,1718565042634,-500.0,0.00014096,2]
[329674529,1718565042649,-500.0,0.00014096,2]
[329674530,1718565042661,-503.31503696,0.00014096,2]
[329674531,1718565042672,-502.90881777,0.00014096,2]
[329674533,1718565042683,-500.0,0.00014096,2]
[329674535,1718565042696,-500.0,0.00014096,2]
[329674536,1718565042713,-500.0,0.00014096,2]
[329674538,1718565042726,-500.0,0.00014096,2]
[329674539,1718565042742,-612.46,0.00014096,2]
[329674540,1718565042758,-500.0,0.00014096,2]
[329674541,1718565042788,-501.15083215,0.00014096,2]
[329674542,1718565042799,-639.59275045,0.00014096,2]
[329674543,1718565042810,-500.0,0.00014096,2]
[329674544,1718565042836,-942.47,0.00014096,2]
[329674545,1718565042850,-500.0,0.00014096,2]
[329674547,1718565042865,-500.0,0.00014096,2]
[329674548,1718565042877,-500.0,0.00014096,2]
[329674549,1718565042894,-500.0,0.00014096,2]
[329674550,1718565042924,-500.0,0.00014096,2]
[329674551,1718565042938,-500.0,0.00014096,2]
[329674552,1718565042964,-500.0,0.00014096,2]
[329674553,1718565042984,-500.0,0.00014096,2]
[329674554,1718565042996,-1394.61,0.00014096,2]
[329674555,1718565043008,-500.0,0.00014096,2]
[329674556,1718565043023,-500.0,0.00014096,2]
[329674557,1718565043037,-500.0,0.00014096,2]
[329674558,1718565043051,-1293.08,0.00014096,2]
[329674559,1718565043071,-807.13,0.00014096,2]
[329674560,1718565043082,-500.0,0.00014096,2]
[329674561,1718565043098,-500.0,0.00014096,2]
[329674562,1718565043112,-500.0,0.00014096,2]
[329674563,1718565043123,-500.0,0.00014096,2]
[329674564,1718565043142,-500.0,0.00014096,2]
[329674565,1718565043153,-500.0,0.00014096,2]
[329674566,1718565043165,-500.0,0.00014096,2]
[329674568,1718565043177,-500.0,0.00014096,2]
[329674570,1718565043189,-500.0,0.00014096,2]
[329674571,1718565043199,-500.0,0.00014096,2]
[329674573,1718565043211,-500.0,0.00014096,2]
[329674574,1718565043223,-500.0,0.00014096,2]
[329674575,1718565043233,-500.0,0.00014096,2]
[329674576,1718565043248,-771.07,0.00014096,2]
[329674577,1718565043259,-2108.1,0.00014096,2]
[329674578,1718565043270,-515.75,0.00014096,2]
[329674579,1718565043284,-500.0,0.00014096,2]
[329674580,1718565043295,-500.0,0.00014096,2]
[329674581,1718565043308,-500.0,0.00014096,2]
[329674582,1718565043320,-500.0,0.00014096,2]
[329674583,1718565043333,-500.0,0.00014096,2]
[329674584,1718565043350,-500.0,0.00014096,2]
[329674585,1718565043361,-500.0,0.00014096,2]
[329674586,1718565043374,-502.25197149,0.00014096,2]
[329674587,1718565043391,-500.0,0.00014096,2]
[329674588,1718565043403,-500.0,0.00014096,2]
[329674589,1718565043420,-590.93665637,0.00014096,2]
[329674590,1718565043435,-500.0,0.00014096,2]
[329674591,1718565043446,-10796.19,0.00014096,2]
[329674592,1718565043466,-500.0,0.00014096,2]
[329674593,1718565043487,-500.0,0.00014096,2]
[329674594,1718565043499,-4992.78,0.00014096,2]
[329674595,1718565043513,-500.0,0.00014096,2]
[329674596,1718565043526,-500.0,0.00014096,2]
[329674597,1718565043548,-510.88978252,0.00014096,2]
[329674598,1718565043567,-525.72,0.00014096,2]
[329674599,1718565043579,-500.0,0.00014096,2]
[329674600,1718565043590,-500.0,0.00014096,2]
[329674601,1718565043605,-500.0,0.00014096,2]
[329674602,1718565043626,-500.0,0.00014096,2]
[329674604,1718565043636,-500.0,0.00014096,2]
[329674606,1718565043669,-608.35,0.00014096,2]
[329674608,1718565043696,-500.0,0.00014096,2]
[329674609,1718565043710,-500.0,0.00014096,2]
[329674611,1718565043722,-500.0,0.00014096,2]
[329674612,1718565043744,-500.26456201,0.00014096,2]
[329674613,1718565043756,-500.0,0.00014097,2]
[329674614,1718565043777,-500.0,0.00014097,2]
[329674615,1718565043805,-507.16501533,0.00014097,2]
[329674616,1718565043847,-591.25315435,0.00014097,2]
[329674617,1718565043864,-257.91939256,0.00014097,2]
[329674618,1718565043881,-500.0,0.00014097,2]
[329674619,1718565043903,-504.10617564,0.00014097,2]
[329674620,1718565043926,-500.0,0.00014097,2]
[329674621,1718565043967,-500.0,0.00014097,2]
[329674622,1718565043985,-500.0,0.00014097,2]
[329674624,1718565044010,-250.0,0.00014097,2]
[329674625,1718565044029,-500.0,0.00014097,2]
[329674627,1718565044042,-500.0,0.00014097,2]
[329674628,1718565044078,-437.34437612,0.00014097,2]
[329674629,1718565044123,-500.0,0.00014097,2]
[329674630,1718565044145,-500.0,0.00014097,4]
[329674631,1718565044164,-503.96127776,0.00014097,2]
[329674632,1718565044176,-500.0,0.00014097,2]
[329674633,1718565044201,-551.21755233,0.00014097,2]
[329674634,1718565044213,-500.0,0.00014097,2]
[329674635,1718565044225,-500.0,0.00014097,2]
[329674636,1718565044236,-501.56626762,0.00014097,2]
[329674637,1718565044248,-500.0,0.00014097,2]
[329674638,1718565044263,-500.0,0.00014097,2]
[329674640,1718565044279,-502.58130826,0.00014097,2]
[329674641,1718565044313,-500.0,0.00014097,2]
[329674643,1718565044339,-500.0,0.00014097,2]
[329674645,1718565044357,-534.20240409,0.00014097,2]
[329674647,1718565044369,-500.0,0.00014097,2]
[329674648,1718565044411,-501.57668032,0.00014097,2]
[329674650,1718565044448,-519.23377316,0.00014097,2]
[329674652,1718565044464,-500.0,0.00014097,2]
[329674654,1718565044478,-620.52038664,0.00014097,2]
[329674656,1718565044492,-500.0,0.00014097,2]
[329674658,1718565044506,-511.34854908,0.00014097,2]
[329674660,1718565044518,-500.54611636,0.00014097,2]
[329674662,1718565044532,-500.0,0.00014097,2]
[329674663,1718565044544,-500.0,0.00014097,2]
[329674664,1718565044555,-517.26258287,0.00014097,2]
[329674665,1718565044566,-500.0,0.00014097,2]
[329674667,1718565044577,-500.0,0.00014097,2]
[329674668,1718565044598,-500.0,0.00014097,2]
[329674671,1718565044625,-490.99090069,0.00014097,2]
[329674673,1718565044646,-500.0,0.00014097,2]
[329674674,1718565044658,-372.67154953,0.00014097,2]
[329674676,1718565044669,-500.0,0.00014097,2]
[329674677,1718565044685,-505.67541535,0.00014097,2]
[329674679,1718565044697,-512.34550775,0.00014097,2]
[329674680,1718565044707,-500.0,0.00014097,2]
[329674682,1718565044724,-502.5183978,0.00014097,2]
[329674684,1718565044747,-500.0,0.00014097,2]
[329674686,1718565044768,-516.54,0.00014097,2]
[329674688,1718565044780,-227.0270757,0.00014097,2]
[329674690,1718565044794,-503.63167053,0.00014097,2]
[329674691,1718565044812,-530.39798401,0.00014097,2]
[329674693,1718565044825,-507.55722763,0.00014097,2]
[329674695,1718565044844,-502.4646511,0.00014097,2]
[329674696,1718565044861,-500.0,0.00014097,2]
[329674697,1718565044881,-1000.0,0.00014097,2]
[329674699,1718565044897,-502.67609223,0.00014097,2]
[329674701,1718565044908,-501.93544075,0.00014097,2]
[329674703,1718565044922,-500.0,0.00014097,2]
[329674705,1718565044945,-161.30957765,0.00014097,2]
[329674707,1718565044957,-500.0,0.00014097,2]
[329674709,1718565044975,-500.0,0.00014097,2]
[329674710,1718565044992,-500.0,0.00014097,2]
[329674712,1718565045015,-500.0,0.00014097,2]
[329674714,1718565045028,-500.0,0.00014097,2]
[329674716,1718565045052,-467.5,0.00014097,2]
[329674718,1718565045067,-502.57488504,0.00014097,2]
[329674720,1718565045080,-500.51439048,0.00014097,2]
[329674722,1718565045096,-500.0,0.00014097,2]
[329674724,1718565045111,-501.07079798,0.00014097,2]
[329674725,1718565045122,-546.6,0.00014097,2]
[329674726,1718565045134,-500.0,0.00014097,2]
[329674728,1718565045154,-500.0,0.00014097,2]
[329674730,1718565045178,-500.0,0.00014097,2]
[329674732,1718565045195,-543.25,0.00014097,2]
[329674734,1718565045213,-500.0,0.00014097,2]
[329674736,1718565045265,-500.0,0.00014097,2]
[329674737,1718565045278,-500.0,0.00014097,2]
[329674739,1718565045294,-500.0,0.00014097,2]
[329674740,1718565045316,-500.0,0.00014098,2]
[329674743,1718565045332,-500.0,0.00014098,2]
[329674744,1718565045345,-222.36505883,0.00014098,2]
[329674746,1718565045362,-541.56260261,0.00014098,2]
[329674749,1718565045392,-500.0,0.00014098,2]
[329674750,1718565045418,-500.0,0.00014098,2]
[329674751,1718565045456,-532.4288445,0.00014098,2]
[329674752,1718565045485,-500.0,0.00014369,2]
[329674754,1718565045499,-500.0,0.00014369,2]
[329674756,1718565045512,-500.0,0.00014369,2]
[329674758,1718565045537,-3140.05,0.00014369,2]
[329674760,1718565045573,-665.15,0.00014369,2]
[329674761,1718565045585,-500.0,0.00014369,2]
[329674762,1718565045601,-500.0,0.00014369,2]
[329674764,1718565045612,-500.0,0.00014369,2]
[329674766,1718565045628,-518.11,0.00014369,2]
[329674768,1718565045648,-500.0,0.00014369,2]
[329674769,1718565045662,-500.0,0.00014369,2]
[329674771,1718565045674,-500.0,0.00014369,2]
[329674772,1718565045686,-500.0,0.00014369,2]
[329674773,1718565045718,-17711.6,0.00014369,2]
[329674774,1718565045752,-500.0,0.00014369,2]
[329674775,1718565045785,-500.0,0.00014369,2]
[329674777,1718565045812,-998.85,0.00014369,2]
[329674779,1718565045825,-2471.49,0.00014369,2]
[329674780,1718565045847,-500.0,0.00014369,2]
[329674781,1718565045859,-500.0,0.00014369,2]
[329674782,1718565045874,-466.23769345,0.00014369,2]
[329674783,1718565045894,-500.0,0.00014369,2]
[329674784,1718565045905,-500.0,0.00014369,2]
[329674785,1718565045918,-500.0,0.00014369,2]
[329674786,1718565045929,-500.0,0.00014369,2]
[329674787,1718565045942,-500.0,0.00014369,2]
[329674788,1718565045955,-500.0,0.00014369,2]
[329674789,1718565045982,-500.0,0.00014369,2]
[329674790,1718565046001,-500.0,0.00014369,2]
[329674791,1718565046014,-500.0,0.0001437,2]
[329674792,1718565046048,-500.0,0.0001437,2]
[329674793,1718565046070,-500.0,0.0001437,2]
[329674794,1718565046113,-491.36308645,0.0001437,2]
[329674795,1718565046124,-500.0,0.0001437,2]
[329674796,1718565046143,-500.0,0.0001437,2]
[329674797,1718565046154,-298.1,0.0001437,2]
[329674798,1718565046164,-500.0,0.0001437,2]
[329674799,1718565046179,-500.0,0.0001437,2]
[329674800,1718565046191,-500.0,0.0001437,2]
[329674801,1718565046208,-500.0,0.0001437,2]
[329674802,1718565046219,-631.41981603,0.0001437,2]
[329674803,1718565046236,-500.0,0.0001437,2]
[329674804,1718565046263,-500.0,0.0001437,2]
[329674805,1718565046274,-500.0,0.0001437,2]
[329674806,1718565046288,-500.0,0.0001437,2]
[329674807,1718565046300,-189.41364229,0.0001437,2]
[329674808,1718565046312,-500.0,0.0001437,2]
[329674809,1718565046323,-500.0,0.0001437,2]
[329674810,1718565046336,-504.64,0.0001437,2]
[329674812,1718565046367,-500.55,0.0001437,2]
[329674813,1718565046379,-627.25,0.0001437,2]
[329674814,1718565046398,-500.0,0.0001437,2]
[329674815,1718565046427,-500.0,0.0001437,2]
[329674816,1718565046445,-500.0,0.0001437,2]
[329674817,1718565046463,-500.0,0.0001437,2]
[329674818,1718565046481,-500.0,0.0001437,2]
[329674821,1718565046498,-342.15688295,0.0001437,2]
[329674822,1718565046509,-500.0,0.0001437,2]
[329674823,1718565046520,-500.0,0.0001437,2]
[329674824,1718565046532,-500.0,0.0001437,2]
[329674825,1718565046544,-500.0,0.0001437,2]
[329674826,1718565046556,-500.0,0.0001437,2]
[329674827,1718565046575,-500.0,0.0001437,2]
[329674828,1718565046592,-500.0,0.0001437,2]
[329674829,1718565046617,-612.46,0.0001437,2]
[329674830,1718565046628,-942.47,0.0001437,2]
[329674831,1718565046640,-500.0,0.0001437,2]
[329674832,1718565046655,-500.0,0.0001437,2]
[329674833,1718565046665,-500.0,0.0001437,2]
[329674834,1718565046676,-500.0,0.0001437,2]
[329674835,1718565046686,-500.0,0.0001437,2]
[329674836,1718565046696,-500.0,0.0001437,2]
[329674837,1718565046708,-1394.61,0.0001437,2]
[329674838,1718565046823,-500.0,0.0001437,2]
[329674839,1718565046861,-500.0,0.0001437,2]
[329674840,1718565046882,-1293.08,0.0001437,2]
[329674841,1718565046895,-807.13,0.0001437,2]
[329674842,1718565046921,-500.0,0.0001437,2]
[329674843,1718565046938,-500.0,0.0001437,2]
[329674844,1718565046950,-500.0,0.0001437,2]
[329674845,1718565046964,-500.0,0.0001437,2]
[329674846,1718565046974,-500.0,0.0001437,2]
[329674847,1718565046985,-500.0,0.0001437,2]
[329674848,1718565047005,-500.0,0.0001437,2]
[329674849,1718565047023,-771.07,0.0001437,2]
[329674850,1718565047036,-2108.1,0.0001437,2]
[329674851,1718565047050,-515.75,0.0001437,2]
[329674852,1718565047068,-185.05252027,0.0001437,2]
[329674853,1718565047093,-500.0,0.0001437,2]
[329674854,1718565047104,-500.0,0.0001437,2]
[329674856,1718565047128,-500.0,0.0001437,2]
[329674858,1718565047142,-500.0,0.0001437,2]
[329674860,1718565047172,-500.0,0.0001437,2]
[329674861,1718565047196,-500.0,0.0001437,2]
[329674862,1718565047228,-10796.19,0.0001437,2]
[329674863,1718565047241,-500.0,0.0001437,2]
[329674864,1718565047268,-4992.78,0.0001437,2]
[329674865,1718565047294,-286.67756531,0.0001437,2]
[329674866,1718565047321,-500.0,0.0001437,2]
[329674867,1718565047343,-525.72,0.0001437,2]
[329674868,1718565047357,-500.0,0.0001437,2]
[329674869,1718565047378,-500.0,0.0001437,2]
[329674870,1718565047391,-500.0,0.0001437,2]
[329674871,1718565047416,-500.0,0.0001437,2]
[329674872,1718565047429,-500.0,0.0001437,2]
[329674873,1718565047444,-608.35,0.0001437,2]
[329674874,1718565047456,-500.0,0.0001437,2]
[329674876,1718565047467,-500.0,0.0001437,2]
[329674877,1718565047477,-500.0,0.00014371,2]
[329674879,1718565047490,-500.0,0.00014371,2]
[329674881,1718565047502,-500.0,0.00014371,2]
[329674883,1718565047517,-592.79833656,0.00014371,2]
[329674885,1718565047531,-500.0,0.00014371,4]
[329674886,1718565047543,-500.0,0.00014371,2]
[329674887,1718565047563,-567.16,0.00014371,2]
[329674888,1718565047576,-500.0,0.00014371,2]
[329674889,1718565047587,-500.0,0.00014371,2]
[329674890,1718565047598,-516.54,0.00014371,2]
[329674891,1718565047611,-1013.05513297,0.00014371,2]
[329674892,1718565047632,-500.0,0.00014371,2]
[329674893,1718565047653,-500.0,0.00014371,2]
[329674894,1718565047665,-500.0,0.00014371,2]
[329674895,1718565047683,-546.6,0.00014371,2]
[329674896,1718565047720,-543.25,0.00014371,2]
[329674897,1718565047774,-540.04,0.00014371,2]
[329674898,1718565047800,-500.0,0.00014371,2]
[329674899,1718565047828,-500.0,0.00014371,2]
[329674900,1718565047852,-500.0,0.00014371,2]
[329674901,1718565047863,-500.0,0.00014371,2]
[329674902,1718565047876,-506.48,0.00014371,2]
[329674903,1718565047887,-190.36542391,0.00014545,2]
[329674904,1718565047907,-500.0,0.00014643,2]
[329674905,1718565047918,-3140.05,0.00014643,2]
[329674906,1718565047930,-665.15,0.00014643,2]
[329674907,1718565047942,-500.0,0.00014643,2]
[329674908,1718565047960,-500.0,0.00014643,2]
[329674911,1718565047980,-518.11,0.00014643,2]
[329674912,1718565047992,-500.0,0.00014643,2]
[329674913,1718565048009,-225.85,0.00014643,2]
[329674914,1718565048023,-500.0,0.00014643,2]
[329674915,1718565048034,-17711.6,0.00014643,2]
[329674916,1718565048050,-998.85,0.00014643,2]
[329674917,1718565048078,-2471.49,0.00014643,2]
[329674918,1718565048091,-500.0,0.00014643,2]
[329674919,1718565048102,-500.0,0.00014643,2]
[329674920,1718565048113,-500.0,0.00014643,2]
[329674921,1718565048126,-500.0,0.00014643,2]
[329674923,1718565048142,-500.0,0.00014644,2]
[329674925,1718565048160,-500.0,0.00014644,2]
[329674926,1718565048184,-500.0,0.00014644,2]
[329674927,1718565048195,-500.0,0.00014644,2]
[329674928,1718565048207,-500.0,0.00014644,2]
[329674929,1718565048219,-500.0,0.00014644,2]
[329674930,1718565048231,-500.0,0.00014644,2]
[329674931,1718565048249,-500.0,0.00014644,2]
[329674932,1718565048265,-500.0,0.00014644,2]
[329674933,1718565048308,-504.64,0.00014644,2]
[329674934,1718565048320,-627.25,0.00014644,2]
[329674935,1718565048333,-500.0,0.00014644,2]
[329674936,1718565048345,-500.0,0.00014644,2]
[329674937,1718565048357,-500.0,0.00014644,2]
[329674938,1718565048368,-322.94445496,0.00014644,2]
[329674939,1718565048402,-500.0,0.00014644,2]
[329674940,1718565048417,-500.0,0.00014644,2]
[329674941,1718565048435,-500.0,0.00014644,2]
[329674942,1718565048448,-500.0,0.00014644,2]
[329674943,1718565048460,-500.0,0.00014644,2]
[329674944,1718565048473,-612.46,0.00014644,2]
[329674945,1718565048528,-942.47,0.00014644,2]
[329674946,1718565048543,-500.0,0.00014644,2]
[329674947,1718565048573,-500.0,0.00014644,2]
[329674948,1718565048589,-1394.61,0.00014644,2]
[329674949,1718565048600,-500.0,0.00014644,2]
[329674950,1718565048612,-500.0,0.00014644,2]
[329674951,1718565048624,-1293.08,0.00014644,2]
[329674952,1718565048636,-29.68654155,0.00014644,2]
[329674953,1718565048772,-777.44345845,0.00014644,2]
[329674954,1718565048788,-500.0,0.00014644,2]
[329674955,1718565048810,-500.0,0.00014644,2]
[329674956,1718565048831,-771.07,0.00014644,2]
[329674957,1718565048854,-2108.1,0.00014644,2]
[329674958,1718565048877,-515.75,0.00014644,2]
[329674959,1718565048891,-509.92617409,0.00014644,2]
[329674960,1718565048925,-500.0,0.00014644,2]
[329674961,1718565048944,-10796.19,0.00014644,2]
[329674962,1718565048969,-500.0,0.00014644,2]
[329674963,1718565048979,-4992.78,0.00014644,2]